[Event "Baltic Zonal III Stage 2018"]
[Site "Liepaja"]
[Date "2018.07.10"]
[Round "2"]
[White "Brazdzionis, Andrius"]
[Black "Malisauskas, Vidmantas"]
[Result "1/2-1/2"]
[ECO "D45"]
[WhiteElo "2252"]
[BlackElo "2432"]
[Annotator "NA"]
[PlyCount "139"]
[EventDate "2018.07.09"]
[EventType "swiss"]
[EventCountry "LAT"]
[SourceTitle "playchess.com"]
[Source "ChessBase"]
[SourceQuality "1"]
[TimeControl "5400+30"]

1. d4 {[%emt 0:00:00]} d5 {[%emt 0:00:00]} 2. Nf3 {[%emt 0:00:01]} c6 {[%emt 0:00:23]} 3. c4 {[%emt 0:00:33]} Nf6 {[%emt 0:03:16]} 4. Nc3 {[%emt 0:00:07]} e6 {[%emt 0:01:13]} 5. e3 {[%emt 0:00:18]} Nbd7 {[%emt 0:00:25]} 6. Qc2 {[%emt 0:00:09]} Be7 {[%emt 0:02:13]} 7. b3 {[%emt 0:01:05]} O-O {[%emt 0:00:31]} 8. Bb2 {[%emt 0:00:32]} a6 {[%emt 0:00:14]} 9. Bd3 {[%emt 0:02:04]} b5 {[%emt 0:00:10]} 10. O-O {[%emt 0:01:45]} Bb7 {[%emt 0:00:43]} 11. Rfd1 {[%emt 0:07:08]} h6 {[%emt 0:12:36]} 12. Rac1 {[%emt 0:06:38]} Qb8 {[%emt 0:02:29]} 13. c5 {[%emt 0:13:41]} b4 {[%emt 0:00:20]} 14. Na4 {[%emt 0:00:28]} a5 {[%emt 0:00:09]} 15. Ne5 {[%emt 0:01:10]} Nxe5 {[%emt 0:02:49]} 16. dxe5 {[%emt 0:00:11]} Nd7 {[%emt 0:00:06]} 17. f4 {[%emt 0:07:05]} Ba6 {[%emt 0:01:47]} 18. Bxa6 {[%emt 0:00:23]} Rxa6 {[%emt 0:00:09]} 19. Bd4 {[%emt 0:00:02]} Qb5 {[%emt 0:02:15]} 20. Rf1 {[%emt 0:04:51]} f6 {[%emt 0:01:29]} 21. Qg6 {[%emt 0:02:00]} Rf7 {[%emt 0:03:17]} 22. f5 {[%emt 0:10:01]} Nf8 {[%emt 0:03:11]} 23. Qg4 {[%emt 0:10:42]} fxe5 {[%emt 0:00:14]} 24. fxe6 {[%emt 0:07:19]} Rxf1+ {[%emt 0:02:00]} 25. Rxf1 {[%emt 0:00:01]} exd4 {[%emt 0:00:19]} 26. Rf7 {[%emt 0:01:51]} Bg5 {[%emt 0:02:19]} 27. h4 {[%emt 0:03:28]} Qd3 {[%emt 0:05:06]} 28. hxg5 {[%emt 0:00:07]} Qxe3+ {[%emt 0:01:27]} 29. Kh1 {[%emt 0:01:41]} Nxe6 {[%emt 0:08:52]} 30. Re7 {[%emt 0:06:30]} Qc1+ {[%emt 0:00:11]} 31. Kh2 {[%emt 0:00:02]} Qf4+ {[%emt 0:00:14]} 32. Qxf4 {[%emt 0:00:03]} Nxf4 {[%emt 0:00:13]} 33. gxh6 {[%emt 0:00:01]} gxh6 {[%emt 0:00:14]} 34. Kg3 {[%emt 0:00:03]} Nd3 {[%emt 0:02:22]} 35. Kg4 {[%emt 0:02:27]} Nf2+ {[%emt 0:03:01]} 36. Kf5 {[%emt 0:00:53]} Kf8 {[%emt 0:04:44]} 37. Rh7 {[%emt 0:06:27]} d3 {[%emt 0:01:20]} 38. Nb6 {[%emt 0:00:07]} Ne4 {[%emt 0:04:31]} 39. Nd7+ {[%emt 0:01:43]} Ke8 {[%emt 0:00:29]} 40. Nf6+ {[%emt 0:01:33]} Nxf6 {[%emt 0:02:02]} 41. Kxf6 {[%emt 0:00:01]} Ra8 {[%emt 0:03:25]} 42. Ke6 {[%emt 0:01:27]} Kf8 {[%emt 0:00:32]} 43. Rf7+ {[%emt 0:00:01]} Kg8 {[%emt 0:00:17]} 44. Rf3 {[%emt 0:00:02]} Kh7 {[%emt 0:09:54]} 45. Kd7 {[%emt 0:00:40]} Rg8 {[%emt 0:00:33]} 46. Kxc6 {[%emt 0:00:18]} Rxg2 {[%emt 0:00:05]} 47. Rxd3 {[%emt 0:00:02]} Rxa2 {[%emt 0:00:12]} 48. Kd7 {[%emt 0:01:44]} a4 {[%emt 0:00:22]} 49. bxa4 {[%emt 0:00:03]} Rxa4 {[%emt 0:00:11]} 50. c6 {[%emt 0:00:03]} Kg6 {[%emt 0:00:56]} 51. c7 {[%emt 0:00:07]} Ra8 {[%emt 0:01:03]} 52. Rxd5 {[%emt 0:00:10]} h5 {[%emt 0:00:17]} 53. Kc6 {[%emt 0:02:17]} Rc8 {[%emt 0:07:34]} 54. Kd7 {[%emt 0:00:42]} Rh8 {[%emt 0:00:30]} 55. c8=Q {[%emt 0:00:13]} Rxc8 {[%emt 0:00:07]} 56. Kxc8 {[%emt 0:00:01]} b3 {[%emt 0:00:42]} 57. Kd7 {[%emt 0:00:33]} h4 {[%emt 0:00:07]} 58. Rb5 {[%emt 0:00:09]} Kf6 {[%emt 0:00:41]} 59. Kd6 {[%emt 0:01:23]} b2 {[%emt 0:00:12]} 60. Rxb2 {[%emt 0:01:11]} Kf5 {[%emt 0:00:07]} 61. Rb4 {[%emt 0:00:14]} Kg5 {[%emt 0:00:05]} 62. Ke5 {[%emt 0:00:10]} h3 {[%emt 0:00:06]} 63. Rb8 {[%emt 0:00:52]} Kg4 {[%emt 0:00:07]} 64. Ke4 {[%emt 0:00:20]} h2 {[%emt 0:00:18]} 65. Rh8 {[%emt 0:00:45]} Kg3 {[%emt 0:00:07]} 66. Ke3 {[%emt 0:00:07]} Kg2 {[%emt 0:00:06]} 67. Rg8+ {[%emt 0:00:18]} Kf1 {[%emt 0:00:10]} 68. Rh8 {[%emt 0:00:19]} Kg2 {[%emt 0:00:06]} 69. Ke2 {[%emt 0:00:11]} h1=Q {[%emt 0:00:14]} 70. Rxh1 {[%emt 0:00:02]} 1/2-1/2

[Event "Baltic Zonal III Stage 2018"]
[Site "Liepaja"]
[Date "2018.07.10"]
[Round "2"]
[White "Vicas, Marijus"]
[Black "Bernotas, Arturs"]
[Result "1-0"]
[ECO "C92"]
[WhiteElo "2183"]
[BlackElo "2413"]
[Annotator "NA"]
[PlyCount "87"]
[EventDate "2018.07.09"]
[EventType "swiss"]
[EventCountry "LAT"]
[SourceTitle "playchess.com"]
[Source "ChessBase"]
[SourceQuality "1"]
[TimeControl "5400+30"]

1. e4 {[%emt 0:00:00]} e5 {[%emt 0:02:53]} 2. Nf3 {[%emt 0:00:00]} Nc6 {[%emt 0:00:23]} 3. Bb5 {[%emt 0:00:00]} a6 {[%emt 0:00:42]} 4. Ba4 {[%emt 0:00:03]} Nf6 {[%emt 0:01:18]} 5. O-O {[%emt 0:02:53]} b5 {[%emt 0:05:05] LiveBook: 6593 Games} 6. Bb3 $11 {[%emt 0:00:05]} Be7 {[%emt 0:00:20]} 7. Re1 {[%emt 0:01:58]} d6 {[%emt 0:01:43]} 8. c3 {[%emt 0:00:59]} O-O {[%emt 0:01:15]} 9. h3 {[%emt 0:01:24]} Bb7 {[%emt 0:06:45]} 10. d3 {[%emt 0:01:34]} Re8 {[%emt 0:02:25]} 11. Ng5 {[%emt 0:01:30]} Rf8 {[%emt 0:00:17]} 12. Nf3 {[%emt 0:00:02]} Na5 {[%emt 0:04:17]} 13. Bc2 {[%emt 0:00:05]} c5 {[%emt 0:00:14]} 14. Nbd2 {[%emt 0:00:48]} Re8 {[%emt 0:02:24]} 15. Nf1 {[%emt 0:01:52]} Bf8 {[%emt 0:01:46]} 16. g4 {[%emt 0:04:29]} d5 {[%emt 0:11:56]} 17. Qe2 {[%emt 0:02:14]} g6 {[%emt 0:06:50]} 18. Ng3 {[%emt 0:03:23]} d4 {[%emt 0:04:56]} 19. Bd2 {[%emt 0:05:38]} Nd7 {[%emt 0:04:19]} 20. h4 {[%emt 0:05:19]} Bd6 {[%emt 0:02:32]} 21. g5 {[%emt 0:09:37]} Nc6 {[%emt 0:06:14]} 22. Nh2 {[%emt 0:03:23]} Bf8 {[%emt 0:09:56]} 23. h5 {[%emt 0:07:34]} dxc3 {[%emt 0:03:33]} 24. bxc3 {[%emt 0:00:12]} b4 {[%emt 0:01:30]} 25. Qg4 {[%emt 0:00:18]} bxc3 {[%emt 0:01:32]} 26. Bxc3 {[%emt 0:00:09]} Nd4 {[%emt 0:00:30]} 27. Ba4 {[%emt 0:03:25]} Nb5 {[%emt 0:05:03]} 28. hxg6 {[%emt 0:04:42]} hxg6 {[%emt 0:00:41]} 29. Bb2 {[%emt 0:01:08]} Nb6 {[%emt 0:02:14]} 30. Bb3 {[%emt 0:00:10]} Bc8 {[%emt 0:01:52]} 31. Qh4 {[%emt 0:01:50]} Nd4 {[%emt 0:00:57]} 32. Bxd4 {[%emt 0:15:06]} Qxd4 {[%emt 0:00:24]} 33. Nh5 {[%emt 0:03:26]} gxh5 {[%emt 0:01:10]} 34. g6 {[%emt 0:00:40]} c4 {[%emt 0:01:50]} 35. Qxh5 {[%emt 0:00:23]} fxg6 {[%emt 0:01:04]} 36. Qxg6+ {[%emt 0:00:05]} Kh8 {[%emt 0:01:07]} 37. Qxe8 {[%emt 0:02:15]} Bf5 {[%emt 0:00:48]} 38. Qh5+ {[%emt 0:00:49]} Bh7 {[%emt 0:00:09]} 39. Nf3 {[%emt 0:04:28]} Qxd3 {[%emt 0:02:24]} 40. Rad1 {[%emt 0:01:08]} Qc3 {[%emt 0:00:18]} 41. Ng5 {[%emt 0:01:49]} Ra7 {[%emt 0:00:20]} 42. Re3 {[%emt 0:00:17]} Qb4 {[%emt 0:00:32]} 43. Nf7+ {[%emt 0:00:15]} Rxf7 {[%emt 0:02:00]} 44. Qxf7 {[%emt 0:00:05]} 1-0

[Event "Baltic Zonal III Stage 2018"]
[Site "Liepaja"]
[Date "2018.07.10"]
[Round "3"]
[White "Kulaots, Kaido"]
[Black "Vicas, Marijus"]
[Result "1-0"]
[ECO "C48"]
[WhiteElo "2555"]
[BlackElo "2183"]
[Annotator "ChessBase"]
[PlyCount "71"]
[EventDate "2018.07.09"]
[EventType "swiss"]
[EventCountry "LAT"]
[SourceTitle "playchess.com"]
[Source "ChessBase"]
[SourceQuality "1"]
[TimeControl "5400+30"]

1. e4 {[%emt 0:00:00]} e5 {[%emt 0:00:00]} 2. Nf3 {[%emt 0:00:03]} Nc6 {[%emt 0:00:00]} 3. Bb5 {[%emt 0:00:13]} Nf6 {[%emt 0:00:10]} 4. Nc3 {[%emt 0:03:44]} Bc5 {[%emt 0:02:01]} 5. d3 {[%emt 0:01:29]} a6 {[%emt 0:06:17]} 6. Bxc6 {[%emt 0:00:18]} dxc6 {[%emt 0:00:06]} 7. Nxe5 {[%emt 0:03:58]} Qd4 {[%emt 0:08:56]} 8. Be3 {[%emt 0:00:13]} Qxe5 {[%emt 0:00:04]} 9. d4 {[%emt 0:00:10]} Qe7 {[%emt 0:04:29]} 10. dxc5 {[%emt 0:00:11]} Nxe4 {[%emt 0:02:09]} 11. Qd4 {[%emt 0:00:13]} Bf5 {[%emt 0:02:12]} 12. O-O-O {[%emt 0:03:26]} O-O {[%emt 0:16:36]} 13. Nxe4 {[%emt 0:04:21]} Bxe4 {[%emt 0:09:29]} 14. f3 {[%emt 0:04:39]} Bd5 {[%emt 0:01:05]} 15. Rhe1 {[%emt 0:10:49]} Rfe8 {[%emt 0:04:52]} 16. Bh6 {[%emt 0:17:35]} Qf8 {[%emt 0:00:21]} 17. Bf4 {[%emt 0:00:04]} Rxe1 {[%emt 0:09:21]} 18. Rxe1 {[%emt 0:00:16]} Re8 {[%emt 0:00:04]} 19. Rxe8 {[%emt 0:02:44]} Qxe8 {[%emt 0:00:01]} 20. c4 {[%emt 0:00:11]} Be6 {[%emt 0:04:22]} 21. Bxc7 {[%emt 0:00:10]} f6 {[%emt 0:01:35]} 22. b3 {[%emt 0:01:50]} Bf5 {[%emt 0:01:06]} 23. Qd2 {[%emt 0:01:54]} h5 {[%emt 0:00:53]} 24. Kb2 {[%emt 0:04:58]} Kh7 {[%emt 0:00:50]} 25. Ka3 {[%emt 0:02:54]} Bg6 {[%emt 0:02:34]} 26. Kb4 {[%emt 0:02:39]} Qe7 {[%emt 0:03:03]} 27. Bd6 {[%emt 0:01:12]} Qd8 {[%emt 0:04:16]} 28. Qe3 {[%emt 0:09:02]} b5 {[%emt 0:06:52]} 29. cxb6 {[%emt 0:02:43]} Qxd6+ {[%emt 0:00:04]} 30. c5 {[%emt 0:00:13]} Qxh2 {[%emt 0:05:57]} 31. Ka5 {[%emt 0:07:52]} Qb8 {[%emt 0:04:29]} 32. Qe7 {[%emt 0:04:30]} Bd3 {[%emt 0:00:25]} 33. b7 {[%emt 0:00:33]} Qf4 {[%emt 0:01:16]} 34. Qd6 {[%emt 0:00:54]} Qd2+ {[%emt 0:00:19]} 35. Kb6 {[%emt 0:00:16]} Qb4+ {[%emt 0:00:41]} 36. Ka7 {[%emt 0:00:14]} 1-0

[Event "Baltic Zonal III Stage 2018"]
[Site "Liepaja"]
[Date "2018.07.10"]
[Round "3"]
[White "Kveinys, Aloyzas"]
[Black "Brazdzionis, Andrius"]
[Result "1-0"]
[ECO "E53"]
[WhiteElo "2537"]
[BlackElo "2252"]
[Annotator "ChessBase"]
[PlyCount "43"]
[EventDate "2018.07.09"]
[EventType "swiss"]
[EventCountry "LAT"]
[SourceTitle "playchess.com"]
[Source "ChessBase"]
[SourceQuality "1"]
[TimeControl "5400+30"]

1. d4 {[%emt 0:00:00]} Nf6 {[%emt 0:00:00]} 2. c4 {[%emt 0:00:06]} e6 {[%emt 0:00:09]} 3. Nc3 {[%emt 0:00:34]} Bb4 {[%emt 0:00:28]} 4. e3 {[%emt 0:00:29]} O-O {[%emt 0:00:17]} 5. Bd3 {[%emt 0:00:17]} d5 {[%emt 0:00:19]} 6. Nf3 {[%emt 0:00:22]} c5 {[%emt 0:00:11]} 7. O-O {[%emt 0:00:14]} cxd4 {[%emt 0:00:07]} 8. exd4 {[%emt 0:00:09]} dxc4 {[%emt 0:00:05]} 9. Bxc4 {[%emt 0:00:07]} b6 {[%emt 0:00:05]} 10. Bg5 {[%emt 0:00:23]} Bb7 {[%emt 0:00:11]} 11. Re1 {[%emt 0:00:29]} Nc6 {[%emt 0:05:57]} 12. Rc1 {[%emt 0:02:08]} Rc8 {[%emt 0:02:41]} 13. a3 {[%emt 0:03:35]} Be7 {[%emt 0:07:15]} 14. Qd3 {[%emt 0:02:38]} Nd5 {[%emt 0:01:40]} 15. Ne4 {[%emt 0:10:16]} h6 {[%emt 0:08:12]} 16. Bd2 {[%emt 0:00:35]} Bd6 {[%emt 0:31:35]} 17. Bxd5 {[%emt 0:05:06]} exd5 {[%emt 0:00:08]} 18. Neg5 {[%emt 0:00:38]} hxg5 {[%emt 0:14:03]} 19. Nxg5 {[%emt 0:00:06]} g6 {[%emt 0:00:04]} 20. Qh3 {[%emt 0:00:10]} Kg7 {[%emt 0:00:06]} 21. Qh7+ {[%emt 0:00:14]} Kf6 {[%emt 0:00:05]} 22. Nf3 {[%emt 0:00:16]} 1-0

[Event "Baltic Zonal III Stage 2018"]
[Site "Liepaja"]
[Date "2018.07.10"]
[Round "3"]
[White "Laurusas, Tomas"]
[Black "Neiksans, Arturs"]
[Result "1/2-1/2"]
[ECO "E63"]
[WhiteElo "2465"]
[BlackElo "2567"]
[Annotator "ChessBase"]
[PlyCount "150"]
[EventDate "2018.07.09"]
[EventType "swiss"]
[EventCountry "LAT"]
[SourceTitle "playchess.com"]
[Source "ChessBase"]
[SourceQuality "1"]
[TimeControl "5400+30"]

1. d4 {[%emt 0:00:00]} Nf6 {[%emt 0:00:00]} 2. c4 {[%emt 0:00:06]} g6 {[%emt 0:00:00]} 3. Nf3 {[%emt 0:00:18]} Bg7 {[%emt 0:00:00]} 4. g3 {[%emt 0:00:08]} O-O {[%emt 0:02:03]} 5. Bg2 {[%emt 0:00:05]} d6 {[%emt 0:01:18]} 6. O-O {[%emt 0:00:07]} Nc6 {[%emt 0:00:06]} 7. Nc3 {[%emt 0:00:08]} a6 {[%emt 0:00:09]} 8. b3 {[%emt 0:10:09]} Rb8 {[%emt 0:01:09]} 9. a4 {[%emt 0:11:57]} Na5 {[%emt 0:06:10]} 10. Ba3 {[%emt 0:05:18]} b6 {[%emt 0:14:14]} 11. d5 {[%emt 0:02:39]} c5 {[%emt 0:01:20]} 12. dxc6 {[%emt 0:00:31]} Nxc6 {[%emt 0:00:03]} 13. Rc1 {[%emt 0:00:56]} Nd7 {[%emt 0:01:55]} 14. e3 {[%emt 0:12:32]} Bb7 {[%emt 0:12:09]} 15. Nd4 {[%emt 0:01:43]} Nxd4 {[%emt 0:01:04]} 16. exd4 {[%emt 0:00:05]} Bxg2 {[%emt 0:00:04]} 17. Kxg2 {[%emt 0:00:05]} b5 {[%emt 0:00:32]} 18. axb5 {[%emt 0:05:07]} axb5 {[%emt 0:02:15]} 19. cxb5 {[%emt 0:00:02]} Qa5 {[%emt 0:03:24]} 20. Bb2 {[%emt 0:00:04]} Nb6 {[%emt 0:03:44]} 21. Qd3 {[%emt 0:05:10]} Qa8+ {[%emt 0:02:58]} 22. Kg1 {[%emt 0:05:55]} Nd5 {[%emt 0:01:19]} 23. Ra1 {[%emt 0:01:41]} Qb7 {[%emt 0:03:09]} 24. Ra5 {[%emt 0:00:05]} Rfc8 {[%emt 0:01:21]} 25. Nxd5 {[%emt 0:10:31]} Qxd5 {[%emt 0:02:07]} 26. Rfa1 {[%emt 0:00:03]} Rb6 {[%emt 0:07:50]} 27. R1a4 {[%emt 0:04:00]} Bf6 {[%emt 0:08:25]} 28. Rc4 {[%emt 0:01:08]} Rcb8 {[%emt 0:00:07]} 29. Rb4 {[%emt 0:00:11]} h5 {[%emt 0:09:20]} 30. h4 {[%emt 0:02:36]} R6b7 {[%emt 0:00:30]} 31. Bc3 {[%emt 0:04:31]} Kg7 {[%emt 0:01:46]} 32. Bd2 {[%emt 0:04:29]} e6 {[%emt 0:02:31]} 33. Bf4 {[%emt 0:00:35]} e5 {[%emt 0:02:53]} 34. Bg5 {[%emt 0:00:56]} Bxg5 {[%emt 0:00:52]} 35. hxg5 {[%emt 0:00:05]} e4 {[%emt 0:02:19]} 36. Qe3 {[%emt 0:00:54]} Rxb5 {[%emt 0:01:06]} 37. Raxb5 {[%emt 0:01:07]} Rxb5 {[%emt 0:00:05]} 38. Rxb5 {[%emt 0:00:09]} Qxb5 {[%emt 0:00:04]} 39. Qxe4 {[%emt 0:00:18]} Qxb3 {[%emt 0:00:06]} 40. Kg2 {[%emt 0:01:36]} Qb5 {[%emt 0:00:35]} 41. Qf4 {[%emt 0:00:17]} Qd5+ {[%emt 0:00:06]} 42. Kg1 {[%emt 0:00:03]} Kf8 {[%emt 0:00:15]} 43. Kf1 {[%emt 0:01:00]} Ke7 {[%emt 0:00:29]} 44. Qf6+ {[%emt 0:00:04]} Kd7 {[%emt 0:00:10]} 45. Qf4 {[%emt 0:00:41]} Kc6 {[%emt 0:00:56]} 46. Ke2 {[%emt 0:00:25]} Kb5 {[%emt 0:00:23]} 47. Kd3 {[%emt 0:01:17]} Qe6 {[%emt 0:02:26]} 48. Kc3 {[%emt 0:01:03]} Qc4+ {[%emt 0:00:37]} 49. Kd2 {[%emt 0:00:04]} Qd5 {[%emt 0:00:42]} 50. Kd3 {[%emt 0:00:56]} Qb3+ {[%emt 0:01:06]} 51. Kd2 {[%emt 0:00:08]} Kc6 {[%emt 0:00:31]} 52. Qe4+ {[%emt 0:00:23]} Kd7 {[%emt 0:00:12]} 53. Qf4 {[%emt 0:00:29]} Qc4 {[%emt 0:00:20]} 54. Qf6 {[%emt 0:00:28]} Qa2+ {[%emt 0:00:18]} 55. Kd3 {[%emt 0:00:06]} Qb3+ {[%emt 0:00:45]} 56. Kd2 {[%emt 0:00:06]} Kc6 {[%emt 0:00:18]} 57. Qf4 {[%emt 0:00:21]} Qe6 {[%emt 0:01:16]} 58. Kd3 {[%emt 0:01:23]} Kd7 {[%emt 0:01:09]} 59. Kd2 {[%emt 0:00:17]} Qc4 {[%emt 0:00:37]} 60. Qf6 {[%emt 0:00:10]} Qa2+ {[%emt 0:01:12]} 61. Kd3 {[%emt 0:00:09]} Kc6 {[%emt 0:00:54]} 62. Qf4 {[%emt 0:00:20]} Qb3+ {[%emt 0:00:29]} 63. Kd2 {[%emt 0:00:15]} Qd5 {[%emt 0:00:15]} 64. Kd3 {[%emt 0:00:26]} Kb5 {[%emt 0:00:52]} 65. Kc3 {[%emt 0:00:16]} Ka4 {[%emt 0:00:42]} 66. Qf6 {[%emt 0:01:05]} Ka3 {[%emt 0:01:11]} 67. Qf4 {[%emt 0:00:08]} Ka4 {[%emt 0:01:52]} 68. Qf6 {[%emt 0:00:04]} Kb5 {[%emt 0:00:23]} 69. Kd3 {[%emt 0:00:26]} Kb4 {[%emt 0:00:00]} 70. Qf4 {[%emt 0:00:13]} Kb3 {[%emt 0:00:00]} 71. Qf6 {[%emt 0:00:52]} Kb4 {[%emt 0:02:16]} 72. Qf4 {[%emt 0:00:05]} Qb3+ {[%emt 0:00:35]} 73. Ke4 {[%emt 0:00:54]} Qe6+ {[%emt 0:00:44]} 74. Kd3 {[%emt 0:00:03]} Kb3 {[%emt 0:00:54]} 75. Qf3 {[%emt 0:00:45]} Kb4 {[%emt 0:00:47]} 1/2-1/2

[Event "Baltic Zonal III Stage 2018"]
[Site "Liepaja"]
[Date "2018.07.10"]
[Round "3"]
[White "Samolins, Vitalijs"]
[Black "Ladva, Ottomar"]
[Result "0-1"]
[ECO "B40"]
[WhiteElo "2400"]
[BlackElo "2498"]
[Annotator "ChessBase"]
[PlyCount "94"]
[EventDate "2018.07.09"]
[EventType "swiss"]
[EventCountry "LAT"]
[SourceTitle "playchess.com"]
[Source "ChessBase"]
[SourceQuality "1"]
[TimeControl "5400+30"]

1. e4 {[%emt 0:00:00]} c5 {[%emt 0:00:36]} 2. Nf3 {[%emt 0:00:49]} e6 {[%emt 0:00:07]} 3. c3 {[%emt 0:00:30]} d5 {[%emt 0:00:06]} 4. exd5 {[%emt 0:00:14]} Qxd5 {[%emt 0:00:02]} 5. d4 {[%emt 0:00:13]} cxd4 {[%emt 0:00:19]} 6. Qxd4 {[%emt 0:07:53]} Nf6 {[%emt 0:02:25]} 7. Qxd5 {[%emt 0:07:07]} Nxd5 {[%emt 0:00:10]} 8. Nbd2 {[%emt 0:00:36]} Be7 {[%emt 0:02:09]} 9. Bc4 {[%emt 0:03:18]} Nb6 {[%emt 0:04:38]} 10. Bb3 {[%emt 0:04:25]} Nc6 {[%emt 0:09:37]} 11. Nc4 {[%emt 0:05:41]} Nxc4 {[%emt 0:01:08]} 12. Bxc4 {[%emt 0:00:05]} e5 {[%emt 0:11:46]} 13. Be3 {[%emt 0:03:55]} f6 {[%emt 0:07:58]} 14. O-O-O {[%emt 0:01:04]} Bd7 {[%emt 0:05:08]} 15. Nd2 {[%emt 0:09:15]} O-O-O {[%emt 0:01:53]} 16. Ne4 {[%emt 0:03:14]} Na5 {[%emt 0:09:24]} 17. Bd5 {[%emt 0:17:36]} b6 {[%emt 0:00:16]} 18. b4 {[%emt 0:02:25]} Nb7 {[%emt 0:04:01]} 19. f4 {[%emt 0:06:30]} f5 {[%emt 0:06:27]} 20. Nd2 {[%emt 0:10:11]} Ba4 {[%emt 0:05:20]} 21. Nb3 {[%emt 0:00:24]} Bd6 {[%emt 0:02:17]} 22. Be6+ {[%emt 0:02:46]} Bd7 {[%emt 0:02:55]} 23. fxe5 {[%emt 0:01:33]} Bxe6 {[%emt 0:00:16]} 24. exd6 {[%emt 0:00:03]} Nxd6 {[%emt 0:01:36]} 25. Rhe1 {[%emt 0:02:33]} Ne4 {[%emt 0:01:44]} 26. Bd4 {[%emt 0:00:08]} Rhe8 {[%emt 0:02:49]} 27. Nd2 {[%emt 0:02:08]} Bxa2 {[%emt 0:01:22]} 28. Nxe4 {[%emt 0:00:19]} fxe4 {[%emt 0:01:21]} 29. Bxg7 {[%emt 0:00:18]} Rxd1+ {[%emt 0:02:49]} 30. Kxd1 {[%emt 0:00:25]} e3 {[%emt 0:00:06]} 31. Bd4 {[%emt 0:04:37]} Bb3+ {[%emt 0:00:08]} 32. Ke2 {[%emt 0:00:39]} Bc4+ {[%emt 0:00:03]} 33. Kd1 {[%emt 0:01:21]} e2+ {[%emt 0:00:04]} 34. Kd2 {[%emt 0:00:01]} Rf8 {[%emt 0:02:41]} 35. Be3 {[%emt 0:01:00]} a5 {[%emt 0:02:08]} 36. bxa5 {[%emt 0:01:28]} bxa5 {[%emt 0:00:02]} 37. Bg5 {[%emt 0:02:03]} Kd7 {[%emt 0:02:54]} 38. Bh4 {[%emt 0:00:21]} Rf1 {[%emt 0:00:51]} 39. Kc2 {[%emt 0:00:31]} Kc6 {[%emt 0:00:56]} 40. Kb2 {[%emt 0:00:29]} a4 {[%emt 0:00:43]} 41. Ka3 {[%emt 0:01:13]} Kb5 {[%emt 0:00:04]} 42. Bg3 {[%emt 0:00:07]} Bd3 {[%emt 0:00:27]} 43. h4 {[%emt 0:01:28]} h5 {[%emt 0:00:09]} 44. Kb2 {[%emt 0:00:09]} Kc4 {[%emt 0:00:06]} 45. Ka3 {[%emt 0:00:53]} Kxc3 {[%emt 0:00:11]} 46. Bc7 {[%emt 0:00:13]} Rxe1 {[%emt 0:00:14]} 47. Ba5+ {[%emt 0:00:03]} Kc2 {[%emt 0:00:04]} 0-1

[Event "Baltic Zonal III Stage 2018"]
[Site "Liepaja"]
[Date "2018.07.10"]
[Round "3"]
[White "Sirosh, Ilja"]
[Black "Meskovs, Nikita"]
[Result "1-0"]
[ECO "D71"]
[WhiteElo "2339"]
[BlackElo "2540"]
[Annotator "ChessBase"]
[PlyCount "43"]
[EventDate "2018.07.09"]
[EventType "swiss"]
[EventCountry "LAT"]
[SourceTitle "playchess.com"]
[Source "ChessBase"]
[SourceQuality "1"]
[TimeControl "5400+30"]

1. d4 {[%emt 0:00:00]} Nf6 {[%emt 0:00:26]} 2. c4 {[%emt 0:00:00]} g6 {[%emt 0:00:40]} 3. g3 {[%emt 0:00:00]} Bg7 {[%emt 0:00:53]} 4. Bg2 {[%emt 0:00:00]} O-O {[%emt 0:00:35]} 5. Nc3 {[%emt 0:00:02]} d6 {[%emt 0:00:23]} 6. Nf3 {[%emt 0:00:10]} c6 {[%emt 0:01:39]} 7. O-O {[%emt 0:00:10]} Na6 {[%emt 0:00:54]} 8. e4 {[%emt 0:04:38]} Bg4 {[%emt 0:00:23]} 9. h3 {[%emt 0:01:03]} Bxf3 {[%emt 0:00:06]} 10. Bxf3 {[%emt 0:00:13]} e5 {[%emt 0:00:50]} 11. d5 {[%emt 0:01:15]} Qb6 {[%emt 0:20:12]} 12. Rb1 {[%emt 0:04:00]} c5 {[%emt 0:17:59]} 13. a3 {[%emt 0:05:32]} Nd7 {[%emt 0:02:07]} 14. Bg2 {[%emt 0:05:06]} f5 {[%emt 0:04:15]} 15. exf5 {[%emt 0:07:51]} gxf5 {[%emt 0:00:29]} 16. g4 {[%emt 0:00:12]} e4 {[%emt 0:20:13]} 17. gxf5 {[%emt 0:02:23]} Ne5 {[%emt 0:02:38]} 18. Nxe4 {[%emt 0:01:44]} Rxf5 {[%emt 0:02:39]} 19. Ng5 {[%emt 0:05:07]} Qd8 {[%emt 0:08:42]} 20. Ne6 {[%emt 0:04:29]} Qf6 {[%emt 0:07:01]} 21. f4 {[%emt 0:06:14]} Nxc4 {[%emt 0:04:03]} 22. b3 {[%emt 0:01:52]} 1-0

[Event "Baltic Zonal III Stage 2018"]
[Site "Liepaja"]
[Date "2018.07.10"]
[Round "3"]
[White "Chukavin, Kirill"]
[Black "Klabis, Rokas"]
[Result "0-1"]
[ECO "C64"]
[WhiteElo "2303"]
[BlackElo "2347"]
[Annotator "NA"]
[PlyCount "28"]
[EventDate "2018.07.09"]
[EventType "swiss"]
[EventCountry "LAT"]
[SourceTitle "playchess.com"]
[Source "ChessBase"]
[SourceQuality "1"]
[TimeControl "5400+30"]

1. e4 {[%emt 0:00:00]} e5 {[%emt 0:00:00]} 2. Nf3 {[%emt 0:00:00]} Nc6 {[%emt 0:00:00]} 3. Bb5 {[%emt 0:00:00]} Bc5 {[%emt 0:00:00]} 4. c3 {[%emt 0:04:43]} Nge7 {[%emt 0:00:06]} 5. O-O {[%emt 0:10:53]} Bb6 {[%emt 0:04:52]} 6. d4 {[%emt 0:03:30]} exd4 {[%emt 0:00:20]} 7. cxd4 {[%emt 0:00:49]} d5 {[%emt 0:00:38]} 8. exd5 {[%emt 0:07:37]} Nxd5 {[%emt 0:00:04]} 9. Re1+ {[%emt 0:04:18]} Be6 {[%emt 0:00:28]} 10. Bxc6+ {[%emt 0:07:19]} bxc6 {[%emt 0:00:03]} 11. Ng5 {[%emt 0:01:40]} O-O {[%emt 0:00:56]} 12. Qc2 {[%emt 0:03:29]} Nf6 {[%emt 0:06:20]} 13. Rxe6 {[%emt 0:14:05]} fxe6 {[%emt 0:00:29]} 14. Nxe6 {[%emt 0:00:07]} Re8 {[%emt 0:00:55]} 0-1